bitfinex/quotes_SOLUSD_20250210
["timestamp","ask_amount","ask_price","bid_price","bid_amount"]
[1739186024292,7.72744757,204.49,204.48,0.03]
[1739186026005,13.53470284,204.49,204.48,0.03]
[1739186026710,13.66019284,204.49,204.48,0.03]
[1739186027002,13.78568284,204.49,204.48,0.03]
[1739186027192,27.19753137,204.49,204.48,0.03]
[1739186033307,26.1549861,204.49,204.48,0.03]
[1739186034427,27.19763092,204.49,204.48,0.03]
[1739186035427,27.07214092,204.49,204.48,0.03]
[1739186039024,21.1392961,204.49,204.48,0.03]
[1739186042426,26.0294961,204.49,204.48,0.03]
[1739186043502,26.1549861,204.49,204.48,0.03]
[1739186043705,26.0294961,204.49,204.48,0.03]
[1739186044322,26.1549861,204.49,204.48,0.03]
[1739186045324,26.0294961,204.49,204.48,0.03]
[1739186045530,21.1392961,204.49,204.48,0.03]
[1739186046023,7.72744757,204.49,204.48,0.03]
[1739186049723,28.91003863,204.5,204.48,0.03]
[1739186050129,23.18259106,204.5,204.48,0.03]
[1739186050523,23.18259106,204.5,204.48,6.4136]
[1739186051845,23.18259106,204.5,204.49,4.8902]
[1739186053221,0.063,204.51,204.49,6.5482]
[1739186054618,0.063,204.51,204.5,5.97842757]
[1739186054811,0.063,204.51,204.49,6.5482]
[1739186055325,0.063,204.51,204.49,12.27564757]
[1739186056111,0.063,204.51,204.5,0.12549]
[1739186056303,0.0001,204.51,204.5,5.97842757]
[1739186056712,0.0001,204.51,204.5,7.20333188]
[1739186057927,0.0001,204.51,204.5,25.50508041]
[1739186059928,142.82744757,204.61,204.54,0.12549]
[1739186060127,137.1,204.6,204.54,0.12549]
[1739186061330,137.1,204.6,204.55,17.1106]
[1739186061705,1.0,204.59,204.55,17.1106]
[1739186061910,6.72744757,204.59,204.55,17.1106]
[1739186063332,6.72744757,204.59,204.55,4.8887]
[1739186063531,5.72744757,204.58,204.54,4.889]
[1739186064627,137.1,204.57,204.54,4.889]
[1739186066128,137.1,204.57,204.51,4.8897]
[1739186066129,5.72744757,204.55,204.51,4.8897]
[1739186066326,56.1,204.54,204.51,4.8897]
[1739186066718,56.1,204.54,204.5,4.9199]
[1739186067436,56.1,204.53,204.5,4.9199]
[1739186070539,56.1,204.54,204.5,4.9199]
[1739186075836,6.72744757,204.51,204.5,0.03]
[1739186076039,7.72744757,204.51,204.5,0.03]
[1739186078161,26.1544861,204.51,204.5,0.03]
[1739186078314,15.53733853,204.49,204.48,0.03]
[1739186078521,22.30749417,204.49,204.48,0.03]
[1739186079737,27.19769417,204.49,204.48,0.03]
[1739186081640,2.0,204.42,204.41,0.03]
[1739186081855,7.72744757,204.42,204.41,0.03]
[1739186089750,26.1565861,204.42,204.41,0.03]
[1739186090338,27.07414259,204.42,204.41,0.03]
[1739186092350,27.07414259,204.42,204.3,17.1311]
[1739186092351,1.0,204.33,204.3,4.8947]
[1739186092653,5.72744757,204.32,204.3,4.8947]
[1739186092831,5.72744757,204.33,204.3,4.8947]
[1739186093162,6.72744757,204.33,204.3,4.8947]
[1739186093449,1.0,204.31,204.3,4.8947]
[1739186093651,5.72744757,204.32,204.3,4.8947]
[1739186093855,1.0,204.31,204.3,4.8947]
[1739186094149,56.1,204.3,204.29,0.03]
[1739186094555,61.82744757,204.3,204.29,0.03]
[1739186095345,56.1,204.3,204.29,0.03]
[1739186095742,56.1,204.3,204.29,4.925]
[1739186096054,61.82744757,204.3,204.29,0.03]
[1739186096953,56.1,204.3,204.29,0.03]
[1739186097358,81.0,204.3,204.29,0.03]
[1739186098144,86.72744757,204.3,204.29,0.03]
[1739186099357,81.0,204.3,204.29,0.03]
[1739186100850,137.1,204.3,204.29,0.03]
[1739186101769,137.1,204.3,204.29,4.925]
[1739186102448,142.82744757,204.3,204.29,4.925]
[1739186102654,86.72744757,204.3,204.29,4.925]
[1739186102949,86.72744757,204.3,204.29,0.03]
[1739186103336,19.2647861,204.3,204.29,0.03]
[1739186103554,15.66282853,204.29,204.27,0.03]
[1739186103757,15.66282853,204.29,204.2,0.03]
[1739186103758,6.72744757,204.21,204.2,0.03]
[1739186105445,20.3902761,204.21,204.2,0.03]
[1739186105649,20.2647861,204.21,204.2,0.03]
[1739186105869,1.0,204.12,204.1,4.8995]
[1739186106070,6.72744757,204.11,204.1,4.8995]
[1739186106964,14.33049014,204.17,204.1,4.8995]
[1739186106965,1.0,204.15,204.1,4.8995]
[1739186107139,56.1,204.16,204.1,10.62694757]
[1739186107340,56.1,204.16,204.12,5.72744757]
[1739186107863,56.1,204.16,204.11,5.85293757]
[1739186108044,56.1,204.16,204.09,7.29915511]
[1739186108045,56.1,204.16,204.12,17.1466]
[1739186108251,1.0,204.13,204.12,4.899]
[1739186108475,6.72744757,204.13,204.12,4.899]
[1739186108771,1.0,204.13,204.12,4.899]
[1739186108981,6.72744757,204.13,204.12,4.899]
[1739186109565,6.74831639,204.13,204.12,4.899]
[1739186109770,1.0,204.13,204.12,4.899]
[1739186109986,1.0,204.13,204.08,12.2797]
[1739186110173,1.0,204.13,204.08,17.1797]
[1739186110376,66.08051986,204.14,204.1,8.98051986]
[1739186110377,56.1,204.14,204.1,8.98051986]
[1739186110590,56.1,204.16,204.11,28.98051986]
[1739186110802,56.1,204.16,204.12,9.10600986]
[1739186111095,9.4191,204.19,204.14,8.98051986]
[1739186111395,38.37583066,204.22,204.18,20.0]
[1739186111601,1.0,204.17,204.13,1.5248]
[1739186111782,1.0,204.15,204.12,6.5611]
[1739186112096,25.7,204.14,204.12,4.899]
[1739186112594,2.0,204.13,204.12,4.899]
[1739186112795,10.98051986,204.13,204.12,4.899]
[1739186112969,36.68051986,204.13,204.12,0.03]
[1739186113164,2.0,204.09,204.08,0.03]
[1739186113480,24.51785839,204.09,204.08,0.03]
[1739186113800,24.64334839,204.09,204.08,0.03]
[1739186114266,25.56245188,204.09,204.08,0.03]
[1739186115778,25.57165774,204.09,204.08,0.03]
[1739186116568,30.96547711,204.09,204.08,0.03]
[1739186117581,32.47607711,204.09,204.08,0.03]
[1739186118791,2.0,203.94,203.93,4.9034]
[1739186119090,16.38354509,203.94,203.93,4.9034]
[1739186119872,16.38354509,203.94,203.91,0.03]
[1739186120267,16.38354509,203.92,203.91,0.03]
[1739186120572,15.38354509,203.92,203.91,0.03]
[1739186120779,16.38354509,203.94,203.91,0.03]
[1739186121697,1.0,203.92,203.91,0.03]
[1739186122071,2.0,203.92,203.91,0.03]
[1739186123580,1.0,203.93,203.91,0.03]
[1739186123783,2.0,203.95,203.91,0.03]
[1739186123986,1.0,203.93,203.91,0.03]
[1739186125481,1.0,203.92,203.91,0.03]
[1739186126084,15.58250446,203.92,203.91,0.03]
[1739186126904,15.38354509,203.92,203.91,0.03]
[1739186128109,15.50903509,203.92,203.91,0.03]
[1739186128278,28.92088362,203.92,203.91,0.03]
[1739186128477,29.04637362,203.92,203.91,0.03]
[1739186128679,28.92088362,203.92,203.91,0.03]
[1739186128990,15.38354509,203.93,203.91,0.03]
[1739186130005,1.0,203.93,203.91,0.03]
[1739186130206,1.0,203.94,203.91,0.03]
[1739186130407,1.0,203.94,203.9,34.38354509]
[1739186130707,1.0,203.94,203.91,14.38354509]
[1739186131098,1.0,203.94,203.9,34.38354509]
[1739186131511,1.0,203.99,203.93,14.38354509]
[1739186131996,1.0,203.97,203.91,14.38354509]
[1739186132206,1.0,203.97,203.92,17.12832982]
[1739186132207,14.38354509,203.96,203.92,17.12832982]
[1739186132403,1.0,203.95,203.92,17.12832982]
[1739186132598,1.0,203.97,203.92,17.12832982]
[1739186133105,2.0,203.97,203.92,17.12832982]
[1739186133499,1.0,203.97,203.92,17.12832982]
[1739186133711,1.0,203.95,203.92,17.12832982]
[1739186134013,1.0,203.95,203.92,12.2597]
[1739186134389,2.0,203.95,203.92,12.2597]
[1739186134597,15.38354509,203.97,203.92,12.2597]
[1739186134803,1.0,203.97,203.92,12.2597]
[1739186134994,14.38354509,203.98,203.92,12.2597]
[1739186135308,1.0,204.01,203.94,14.38354509]
[1739186135511,15.38354509,203.99,203.95,20.0]
[1739186136207,16.38354509,203.99,203.96,4.9029]
[1739186136607,1.0,203.94,203.87,47.05134509]
[1739186136809,14.38354509,203.93,203.88,17.1669]
[1739186137209,15.38354509,203.92,203.88,17.1669]
[1739186137402,14.38354509,203.93,203.88,17.1669]
[1739186137599,1.0,203.96,203.92,20.0]
[1739186138392,1.0,203.96,203.93,4.9036]
[1739186138594,9.99562599,203.96,203.93,4.9036]
[1739186138806,1.0,203.96,203.93,4.9036]
[1739186140422,1.0,204.0,203.95,26.15662599]
[1739186140616,1.0,204.0,203.95,17.161]
[1739186141516,1.0,204.0,203.95,26.15662599]
[1739186141815,2.0,204.0,203.95,17.161]
[1739186142021,1.0,204.0,203.95,17.161]
[1739186142321,1.0,204.0,203.95,26.15662599]
[1739186142917,25.7,204.03,203.97,8.99562599]
[1739186143113,25.7,204.02,203.97,8.99562599]
[1739186143318,25.7,204.02,203.98,28.99562599]
[1739186143516,25.7,204.03,203.98,28.99562599]
[1739186144198,25.7,204.05,204.02,20.0]
[1739186144418,25.7,204.07,204.02,28.99562599]
[1739186144620,25.7,204.07,204.03,8.99562599]
[1739186144915,25.7,204.07,204.04,4.9009]
[1739186146304,25.7,204.07,204.03,17.154]
[1739186147199,1.0,204.06,204.03,4.9012]
[1739186148518,1.0,204.04,204.02,4.9014]
[1739186149107,1.0,204.06,204.02,4.9014]
[1739186150506,82.0,204.08,204.02,26.15072599]
[1739186151721,1.0,204.1,204.05,8.99562599]
[1739186151906,1.063,204.12,204.06,8.99562599]
[1739186152105,1.0,204.08,204.06,20.0]
[1739186152505,1.0,204.08,204.07,4.9002]
[1739186155120,10.05862599,204.12,204.07,4.9002]
[1739186155419,1.063,204.12,204.07,17.1508]
[1739186155825,1.0,204.1,204.07,17.1508]
[1739186156011,9.99562599,204.08,204.07,4.9002]
[1739186156625,36.69562599,204.08,204.07,4.9002]
[1739186156819,36.69562599,204.08,204.04,17.1533]
[1739186157015,10.99562599,204.06,204.04,4.9009]
[1739186157221,34.69562599,204.05,204.04,4.9009]
[1739186157423,8.99562599,204.05,204.04,4.9009]
[1739186157917,1.0,204.02,203.98,4.9024]
[1739186158105,10.99562599,204.0,203.98,4.9024]
[1739186158306,1.6267,204.07,203.92,4.9038]
[1739186158307,1.0,203.97,203.92,4.9038]
[1739186158514,9.99562599,203.97,203.92,4.9038]
[1739186160018,9.99562599,203.97,203.92,17.1635]
[1739186160302,25.7,203.98,203.93,8.99562599]
[1739186160815,35.69562599,203.98,203.92,17.1635]
[1739186161121,9.99562599,203.97,203.92,17.1635]
[1739186161318,2.0,203.95,203.92,4.9038]
[1739186161526,8.99562599,203.94,203.92,4.9038]
[1739186161920,1.0,203.93,203.92,4.9338]
[1739186163306,1.0,203.93,203.92,0.03]
[1739186164921,1.0,203.95,203.92,0.03]
[1739186165223,2.0,203.95,203.92,0.03]
[1739186165414,1.0,203.95,203.92,0.03]
[1739186165749,25.7,203.98,203.92,9.02562599]
[1739186165929,25.7,203.98,203.93,8.99562599]
[1739186166128,25.7,203.98,203.94,8.99562599]
[1739186166438,1.0,204.03,203.97,8.99562599]
[1739186166804,106.7,204.05,203.98,8.99562599]
[1739186166805,9.99562599,204.05,203.98,8.99562599]
[1739186167019,26.7,204.06,204.0,8.99562599]
[1739186167212,1.0,204.05,203.99,28.99562599]
[1739186167621,1.0,204.05,204.0,17.1568]
[1739186168615,1.0,204.03,204.0,24.9019]
[1739186169014,1.0,204.04,204.0,24.9019]
[1739186169226,14.3823723,204.06,204.0,4.9019]
[1739186169832,0.063,204.07,204.0,19.2842723]
[1739186170011,1.0,204.06,204.0,31.5391723]
[1739186170535,14.4453723,204.07,204.0,31.5391723]
[1739186170736,0.063,204.07,204.01,14.3823723]
[1739186171110,0.063,204.07,204.02,14.3823723]
[1739186171331,0.063,204.07,204.02,34.3823723]
[1739186171740,0.063,204.07,204.06,20.0]
[1739186171925,0.063,204.07,204.05,19.2830723]
[1739186172238,0.0001,204.07,204.06,34.3823723]
[1739186172938,0.0001,204.07,204.06,47.91971083]
[1739186173132,0.0001,204.07,204.06,54.46051083]
[1739186173327,14.3823723,204.19,204.11,0.12549]
[1739186173528,41.0823723,204.21,204.14,14.3823723]
[1739186173729,1.0,204.19,204.13,14.3823723]
[1739186173935,15.3823723,204.19,204.12,19.2813723]
[1739186174840,1.0,204.15,204.12,24.899]
[1739186175214,15.3823723,204.17,204.13,20.0]
[1739186175441,14.4453723,204.2,204.13,34.3823723]
[1739186175745,0.063,204.2,204.16,14.3823723]
[1739186175949,0.063,204.2,204.17,4.8978]
[1739186176146,14.4453723,204.2,204.17,4.8978]
[1739186176436,15.3823723,204.18,204.14,4.8985]
[1739186176637,1.0,204.17,204.14,4.8985]
[1739186176841,16.4453723,204.2,204.14,4.8985]
[1739186177017,0.063,204.2,204.15,14.3823723]
[1739186177838,0.063,204.2,204.14,26.6287723]
[1739186178030,15.3823723,204.19,204.15,4.8983]
[1739186178225,14.3823723,204.17,204.15,4.8983]
[1739186178430,15.3823723,204.17,204.14,4.8985]
[1739186179241,2.0,204.13,204.1,4.8995]
[1739186179445,14.3823723,204.12,204.1,4.8995]
[1739186179822,14.3823723,204.12,204.06,18.7916]
[1739186180121,14.3823723,204.12,204.07,4.9002]
[1739186180343,1.0,204.11,204.07,4.9002]
[1739186181053,25.7,204.13,204.08,14.3823723]
[1739186181228,25.7,204.13,204.09,14.3823723]
[1739186181652,25.7,204.13,204.11,14.3823723]
[1739186182150,25.7,204.13,204.12,4.899]
[1739186182519,15.4453723,204.2,204.12,19.2813723]
[1739186182735,1.063,204.2,204.13,14.3823723]
[1739186183143,0.063,204.2,204.15,14.3823723]
[1739186183527,0.063,204.2,204.14,14.5078623]
[1739186184568,0.063,204.2,204.16,20.0]
[1739186184737,0.063,204.2,204.16,34.3823723]
[1739186185050,0.063,204.2,204.17,0.12549]
[1739186185645,0.063,204.2,204.16,34.3823723]
[1739186185955,0.063,204.2,204.19,14.3823723]
[1739186186330,0.063,204.2,204.19,19.2796723]
[1739186187052,0.063,204.2,204.19,32.94250083]
[1739186187053,0.0001,204.2,204.19,32.94250083]
[1739186188452,0.0001,204.2,204.19,19.2796723]
[1739186189137,0.0001,204.2,204.19,4.8973]
[1739186190236,0.0001,204.2,204.19,24.8973]
[1739186194257,0.0001,204.2,204.19,39.2796723]
[1739186195767,14.4453723,204.28,204.21,14.3823723]
[1739186196259,0.063,204.28,204.22,14.3823723]
[1739186196862,0.063,204.28,204.22,17.1383]
[1739186197549,0.063,204.28,204.24,14.3823723]
[1739186197747,0.063,204.28,204.26,14.34110558]
[1739186197946,0.063,204.28,204.27,14.34110558]
[1739186198660,0.063,204.28,204.25,8.96332863]
[1739186198851,0.063,204.28,204.24,8.96332863]
[1739186199051,0.063,204.28,204.25,24.8959]
[1739186201337,0.063,204.28,204.25,39.24082428]
[1739186202843,0.063,204.28,204.27,14.34492428]
[1739186203047,0.063,204.28,204.26,14.34492428]
[1739186203239,0.063,204.28,204.27,24.8954]
[1739186203653,0.063,204.28,204.24,4.8962]
[1739186203654,14.40792428,204.28,204.24,4.8962]
[1739186205052,1.0,204.27,204.24,4.8962]
[1739186205261,1.0,204.25,204.2,4.8971]
[1739186205468,1.0,204.23,204.2,4.8971]
[1739186205653,14.34492428,204.22,204.2,4.8971]
[1739186205854,14.34492428,204.24,204.2,24.8971]
[1739186206168,25.7,204.25,204.2,37.1399]
[1739186206369,25.7,204.25,204.21,14.34492428]
[1739186206569,25.7,204.25,204.23,14.34492428]
[1739186206872,25.7,204.25,204.24,14.34492428]
[1739186207472,25.7,204.25,204.24,19.24112428]
[1739186207843,25.7,204.25,204.24,24.8962]
[1739186208047,25.7,204.25,204.24,4.8962]
[1739186210174,0.063,204.28,204.24,31.48162428]
[1739186210351,0.063,204.28,204.25,14.34492428]
[1739186210850,0.063,204.28,204.26,14.34492428]
[1739186211267,0.063,204.28,204.27,4.8954]
[1739186213304,0.063,204.28,204.24,32.2405]
[1739186213579,0.063,204.28,204.25,4.8959]
[1739186213871,0.063,204.28,204.25,19.24082428]
[1739186214176,40.24848344,204.29,204.27,14.34492428]
[1739186214375,14.55318344,204.29,204.27,14.34492428]
[1739186215075,0.063,204.33,204.28,14.34492428]
[1739186216282,1.0,204.38,204.32,34.34492428]
[1739186216591,1.5044,204.39,204.33,14.34492428]
[1739186216788,15.34492428,204.38,204.33,20.0]
[1739186217275,15.84932428,204.39,204.33,20.0]
[1739186217472,1.0,204.38,204.33,14.34492428]
[1739186217674,15.34492428,204.38,204.32,20.0]
[1739186217871,16.34492428,204.38,204.32,20.0]
[1739186218377,16.34492428,204.38,204.33,4.894]
[1739186218774,16.34492428,204.35,204.33,4.894]
[1739186219085,14.34492428,204.34,204.3,4.8947]
[1739186219286,1.0,204.33,204.3,4.8947]
[1739186220563,1.0,204.33,204.29,17.1325]
[1739186220768,25.7,204.34,204.29,17.1325]
[1739186221058,25.7,204.34,204.29,31.47742428]
[1739186221285,1.0,204.33,204.29,17.1325]
[1739186221462,2.0,204.3,204.29,4.895]
[1739186222285,2.0,204.3,204.25,12.2396]
[1739186222490,1.0,204.28,204.26,4.8957]
[1739186222691,1.0,204.28,204.25,12.2396]
[1739186223567,1.0,204.26,204.23,4.8964]
[1739186223775,27.7,204.26,204.23,4.8964]
[1739186225271,1.0,204.24,204.23,4.8964]
[1739186225475,9.96572187,204.24,204.23,4.8964]
[1739186225864,1.0,204.24,204.22,4.9266]
[1739186226065,25.7,204.25,204.22,24.9266]
[1739186226271,26.7,204.25,204.22,24.9266]
[1739186226977,25.7,204.25,204.23,8.96572187]
[1739186228094,0.0001,204.25,204.24,33.86192187]
[1739186230592,0.0001,204.25,204.24,24.8962]
[1739186231189,0.0001,204.25,204.24,33.86192187]
[1739186231992,0.0001,204.25,204.24,24.8962]
[1739186232194,1.0001,204.25,204.24,4.8962]
[1739186232498,1.0,204.23,204.22,4.9266]
[1739186232999,9.96572187,204.23,204.22,0.03]
[1739186233187,13.86572187,204.23,204.22,0.03]
[1739186233580,13.86572187,204.23,204.22,4.9266]
[1739186233991,4.9,204.23,204.22,4.9266]
[1739186234300,13.86572187,204.23,204.22,0.03]
[1739186234511,16.62999399,204.23,204.22,0.03]
[1739186234977,15.71180187,204.23,204.22,0.03]
[1739186236100,15.46082187,204.23,204.22,0.03]
[1739186236984,12.56082187,204.23,204.22,0.03]
[1739186237196,17.70820187,204.23,204.22,0.03]
[1739186237401,17.70820187,204.23,204.19,0.03]
[1739186237402,22.25098,204.2,204.19,0.03]
[1739186237590,31.21670187,204.2,204.19,0.03]
[1739186237893,10.96572187,204.2,204.19,0.03]
[1739186238093,10.96572187,204.22,204.19,0.03]
[1739186238401,9.96572187,204.22,204.19,0.03]
[1739186238691,1.0,204.22,204.19,0.03]
[1739186241893,1.0,204.22,204.19,312.03]
[1739186242207,2.9,204.23,204.2,8.96572187]
[1739186242508,82.5951,204.28,204.19,312.03]
[1739186242509,2.9,204.29,204.22,8.96572187]
[1739186242710,0.063,204.3,204.25,8.96572187]
[1739186243006,1.0,204.29,204.25,8.96572187]
[1739186243183,1.0,204.29,204.23,8.96572187]
[1739186243483,1.0,204.29,204.24,8.96572187]
[1739186244308,1.0,204.27,204.22,26.10402187]
[1739186244498,10.96572187,204.27,204.22,17.1383]
[1739186244706,1.0,204.25,204.22,4.8966]
[1739186244918,2.0,204.25,204.22,4.8966]
[1739186245398,1.0,204.25,204.22,4.8966]
[1739186246398,1.0,204.23,204.21,4.8969]
[1739186246709,1.0,204.23,204.21,24.8969]
[1739186246907,1.0,204.23,204.21,4.8969]
[1739186247098,2.0,204.23,204.21,4.8969]
[1739186247700,1.0,204.23,204.21,4.8969]
[1739186248336,1.0,204.23,204.19,0.03]
[1739186248517,1.0,204.23,204.19,4.9273]
[1739186249494,2.9,204.25,204.21,8.96572187]
[1739186249695,1.0,204.29,204.24,8.96572187]
[1739186249900,1.0,204.29,204.25,8.96572187]
[1739186250221,1.0,204.29,204.23,8.96572187]
[1739186250926,1.0,204.27,204.23,8.96572187]
[1739186251326,1.0,204.27,204.24,4.8962]
[1739186251832,9.02872187,204.3,204.25,8.96572187]
[1739186251833,0.063,204.3,204.25,8.96572187]
[1739186253235,0.063,204.3,204.26,8.96572187]
[1739186254037,0.063,204.3,204.28,8.96572187]
[1739186254418,0.063,204.3,204.29,20.0]
[1739186255116,0.063,204.3,204.27,8.96572187]
[1739186255533,0.063,204.3,204.26,8.96572187]
[1739186255739,0.063,204.3,204.25,13.86162187]
[1739186255906,1.0,204.28,204.25,4.8959]
[1739186256539,1.0,204.29,204.25,4.8959]
[1739186257109,1.0,204.28,204.25,4.8959]
[1739186257310,1.0,204.24,204.21,4.8969]
[1739186257530,1.0,204.24,204.19,1.2471673]
[1739186257828,0.3,204.25,204.2,4.8971]
[1739186258035,0.3,204.25,204.2,13.86282187]
[1739186261052,0.3,204.25,204.22,8.96572187]
[1739186261352,0.3,204.25,204.23,8.96572187]
[1739186263057,0.3,204.25,204.24,4.8962]
[1739186264138,1.0,204.24,204.21,4.8969]
[1739186265056,1.0,204.24,204.2,17.1699]
[1739186265864,1.0,204.24,204.2,4.9271]
[1739186268649,1.0,204.23,204.2,4.9271]
[1739186269369,1.0,204.21,204.2,0.03]
[1739186271674,1.0,204.22,204.2,8.99572187]
[1739186272044,1.0,204.22,204.2,0.03]
[1739186272242,1.0,204.22,204.2,4.9271]
[1739186274172,1.0,204.24,204.2,13.89282187]
[1739186275261,0.363,204.25,204.22,8.96572187]
[1739186275450,0.063,204.25,204.24,8.96572187]
[1739186275857,0.063,204.25,204.23,28.96572187]
[1739186276057,0.063,204.25,204.23,20.0]
[1739186276276,1.0,204.24,204.23,4.8964]
[1739186276585,0.063,204.25,204.21,4.8969]
[1739186276586,1.0,204.22,204.21,4.8969]
[1739186277961,1.0,204.24,204.21,4.8969]
[1739186278169,1.0,204.24,204.21,13.86262187]
[1739186278430,1.0,204.22,204.21,13.86262187]
[1739186280898,1.0,204.24,204.21,13.86262187]
[1739186281394,1.0,204.23,204.21,4.8969]
[1739186281596,1.0,204.22,204.21,4.8969]
[1739186282606,1.0,204.22,204.2,4.9271]
[1739186282900,1.0,204.21,204.2,4.9271]
[1739186283589,1.0,204.22,204.2,4.9271]
[1739186284277,2.3,204.24,204.2,4.9271]
[1739186284485,1.3,204.24,204.21,8.96572187]
[1739186284805,2.0,204.21,204.2,0.03]
[1739186286103,2.0,204.21,204.2,4.9271]
[1739186286404,2.0,204.21,204.2,0.03]
[1739186293500,2.3,204.21,204.2,0.03]
[1739186295887,8.04212303,204.21,204.2,0.03]
[1739186297704,7.74212303,204.21,204.2,0.03]
[1739186301703,2.0,204.21,204.2,0.03]
[1739186316615,7.14788,204.21,204.2,0.03]
[1739186316800,2.25098,204.21,204.2,0.03]
[1739186318799,2.0,204.21,204.2,0.03]
[1739186319002,1.0,204.21,204.2,0.03]
[1739186320125,2.0,204.21,204.2,0.03]
[1739186320714,7.74212303,204.21,204.2,0.03]
[1739186321004,9.62540303,204.21,204.2,0.03]
[1739186321209,0.25098,204.2,204.19,0.03]
[1739186321418,2.0,204.13,204.12,0.03]
[1739186321608,7.74212303,204.13,204.12,0.03]
[1739186322719,2.0,204.15,204.12,0.03]
[1739186323442,1.0,204.13,204.12,0.03]
[1739186323720,2.0,204.15,204.12,0.03]
[1739186323923,1.0,204.15,204.12,0.03]
[1739186324107,2.0,204.17,204.12,0.03]
[1739186324521,2.0,204.17,204.12,22.91872303]
[1739186324820,1.0,204.17,204.14,5.74212303]
[1739186325403,1.0,204.19,204.15,5.74212303]
[1739186325616,1.0,204.19,204.15,5.74231142]
[1739186326503,1.0,204.19,204.16,4.8981]
[1739186328941,1.0,204.2,204.18,8.97245096]
[1739186329933,1.0,204.21,204.19,4.8973]
[1739186331522,1.0,204.2,204.19,4.8973]
[1739186331906,1.0,204.21,204.18,4.8976]
[1739186332121,0.063,204.25,204.2,8.97245096]
[1739186332321,0.063,204.25,204.18,18.1416]
[1739186332322,1.0,204.27,204.21,8.97245096]
[1739186332520,1.063,204.3,204.24,8.97245096]
[1739186332722,1.363,204.3,204.24,8.97245096]
[1739186334030,1.363,204.3,204.25,4.8959]
[1739186334815,1.0,204.28,204.25,4.8959]
[1739186335626,1.0,204.26,204.25,4.8959]
[1739186336331,1.0,204.28,204.24,4.8962]
[1739186336837,0.063,204.3,204.27,8.97245096]
[1739186337134,0.063,204.3,204.28,8.97245096]
[1739186337828,0.063,204.3,204.27,8.97245096]
[1739186338330,0.063,204.3,204.29,20.0]
[1739186338529,0.937,204.36,204.31,8.97245096]
[1739186338730,0.937,204.38,204.32,8.97245096]
[1739186338935,1.6545,204.42,204.37,8.97245096]
[1739186338936,1.0,204.42,204.37,8.97245096]
[1739186339235,1.0,204.42,204.38,8.97245096]
[1739186339735,0.937,204.39,204.37,28.97245096]
[1739186339930,0.937,204.41,204.38,4.8928]
[1739186340515,6.7070321,204.43,204.4,8.97245096]
[1739186340729,6.7070321,204.43,204.42,8.97245096]
[1739186341110,6.4363122,204.43,204.42,8.97245096]
[1739186341820,0.063,204.44,204.42,8.97245096]
[1739186342015,0.063,204.44,204.43,8.97245096]
[1739186342943,0.063,204.44,204.42,8.97245096]
[1739186343142,0.063,204.44,204.43,20.0]
[1739186344537,0.937,204.43,204.37,17.62545096]
[1739186345032,0.937,204.43,204.4,20.0]
[1739186345545,0.937,204.41,204.37,8.653]
[1739186346224,0.937,204.41,204.37,17.62545096]
[1739186346427,0.937,204.41,204.37,8.653]